fUST/lending_fUST_20250720
["ID","MTS","AMOUNT","RATE_DAILY","PERIOD"]
[373408684,1752989446115,-159.89882593,0.00018488,2]
[373408685,1752989446125,-460.0,0.00018488,2]
[373408686,1752989446136,-460.0,0.00018488,2]
[373408687,1752989446145,-225.03217727,0.00018488,2]
[373408688,1752989446155,-460.0,0.00018488,2]
[373408689,1752989446165,-460.0,0.00018488,2]
[373408690,1752989446174,-460.0,0.00018488,2]
[373408691,1752989446184,-460.0,0.00018488,2]
[373408692,1752989446193,-460.0,0.00018488,2]
[373408693,1752989446203,-460.0,0.00018488,2]
[373408694,1752989446212,-395.22,0.00018488,2]
[373408695,1752989446221,-460.0,0.00018488,2]
[373408696,1752989446231,-460.0,0.00018488,2]
[373408697,1752989446240,-460.0,0.00018488,2]
[373408698,1752989446250,-1853.25,0.00018489,2]
[373408699,1752989446259,-724.52,0.00018489,2]
[373408700,1752989446268,-879.28515121,0.00018492,2]
[373408701,1752989446278,-500.0,0.00018506,2]
[373408702,1752989446287,-371.01099773,0.00018506,2]
[373408703,1752989446296,-1047.19,0.0001859,2]
[373408704,1752989446306,-460.0,0.0001859,2]
[373408705,1752989446316,-782.02,0.00018591,2]
[373408706,1752989446325,-1239.34,0.00018591,2]
[373408707,1752989446338,-460.0,0.00018591,2]
[373408708,1752989446347,-836.02,0.00018591,2]
[373408709,1752989446356,-1597.98,0.0001866,2]
[373408710,1752989446366,-531.74,0.0001866,2]
[373408711,1752989446376,-460.0,0.0001866,2]
[373408713,1752989446386,-1212.6,0.0001866,2]
[373408714,1752989446396,-460.0,0.0001866,2]
[373408724,1752989446498,-460.0,0.0001866,2]
[373408726,1752989446508,-460.0,0.0001866,2]
[373408728,1752989446517,-460.0,0.0001866,2]
[373408730,1752989446526,-460.0,0.0001866,2]
[373408732,1752989446535,-460.0,0.0001866,2]
[373408734,1752989446545,-966.21,0.0001866,2]
[373408736,1752989446554,-460.0,0.0001866,2]
[373408738,1752989446564,-460.0,0.0001866,2]
[373408740,1752989446573,-2187.03,0.0001866,2]
[373408742,1752989446582,-460.0,0.00018661,2]
[373408744,1752989446592,-225.85,0.00018661,2]
[373408746,1752989446601,-460.0,0.00018661,2]
[373408748,1752989446610,-460.0,0.00018661,2]
[373408750,1752989446619,-460.0,0.00018661,2]
[373408752,1752989446628,-560.07,0.00018661,2]
[373408754,1752989446638,-460.0,0.00018661,2]
[373408756,1752989446647,-460.0,0.00018661,2]
[373408758,1752989446656,-460.0,0.00018661,2]
[373408760,1752989446666,-460.0,0.00018661,2]
[373408762,1752989446675,-460.0,0.00018661,2]
[373408764,1752989446684,-460.0,0.00018661,2]
[373408766,1752989446693,-460.0,0.00018661,2]
[373408768,1752989446702,-460.0,0.00018661,2]
[373408770,1752989446711,-547.93,0.00018661,2]
[373408772,1752989446720,-460.0,0.00018661,2]
[373408774,1752989446729,-1003.63,0.00018661,2]
[373408776,1752989446738,-460.0,0.00018661,2]
[373408778,1752989446747,-460.0,0.00018661,2]
[373408780,1752989446756,-460.0,0.00018661,2]
[373408782,1752989446765,-460.0,0.00018661,2]
[373408784,1752989446775,-460.0,0.00018662,2]
[373408786,1752989446784,-460.0,0.00018662,2]
[373408788,1752989446793,-460.0,0.00018662,2]
[373408790,1752989446803,-9834.03,0.00018663,2]
[373408792,1752989446812,-460.0,0.00018663,2]
[373408794,1752989446821,-460.0,0.00018663,2]
[373408796,1752989446830,-460.0,0.00018663,2]
[373408798,1752989446839,-460.0,0.00018663,2]
[373408800,1752989446848,-460.0,0.00018663,2]
[373408802,1752989446858,-460.0,0.00018663,2]
[373408804,1752989446867,-460.0,0.00018663,2]
[373408806,1752989446876,-460.0,0.00018663,2]
[373408808,1752989446886,-460.0,0.00018663,2]
[373408810,1752989446897,-450.56033247,0.00018663,2]
[373408812,1752989446909,-460.0,0.00018663,2]
[373408814,1752989446919,-460.0,0.00018663,2]
[373408816,1752989446928,-460.0,0.00018663,2]
[373408818,1752989446937,-699.19,0.00018663,2]
[373408820,1752989446946,-460.0,0.00018663,2]
[373408822,1752989446955,-1385.13,0.00018663,2]
[373408824,1752989446965,-332.01201208,0.00018728,2]
[373408826,1752989446974,-12599.57303136,0.00018748,2]
[373408828,1752989446983,-340.21,0.00018762,2]
[373408830,1752989446992,-617.15,0.00018762,2]
[373408832,1752989447001,-460.0,0.00018762,2]
[373408834,1752989447010,-460.0,0.00018762,2]
[373408836,1752989447019,-460.0,0.00018762,2]
[373408838,1752989447028,-460.0,0.00018762,2]
[373408840,1752989447037,-460.0,0.00018762,2]
[373408842,1752989447046,-460.0,0.00018762,2]
[373408844,1752989447054,-460.0,0.00018762,2]
[373408846,1752989447063,-460.0,0.00018762,2]
[373408848,1752989447072,-258.73630041,0.00018762,2]
[373408850,1752989447081,-460.0,0.00018762,2]
[373408852,1752989447090,-460.0,0.00018762,2]
[373408854,1752989447099,-460.0,0.00018762,2]
[373408856,1752989447109,-1853.25,0.00018763,2]
[373408857,1752989447118,-724.52,0.00018763,2]
[373408859,1752989447127,-879.28515121,0.00018834,2]
[373408862,1752989447137,-1047.19,0.00018864,2]
[373408864,1752989447147,-782.02,0.00018865,2]
[373408866,1752989447155,-1239.34,0.00018865,2]
[373408868,1752989447164,-460.0,0.00018865,2]
[373408870,1752989447174,-836.02,0.00018865,2]
[373408872,1752989447183,-2109.81505385,0.000189,2]
[373408874,1752989447192,-487.44,0.00018927,3]
[373408876,1752989447202,-1597.98,0.00018934,2]
[373408878,1752989447211,-531.74,0.00018934,2]
[373408880,1752989447220,-186.67,0.00018934,2]
[373408882,1752989447229,-1212.6,0.00018934,2]
[373408884,1752989447238,-221.76000003,0.00018934,2]
[373408886,1752989447247,-460.0,0.00018934,2]
[373408888,1752989447256,-460.0,0.00018934,2]
[373408890,1752989447265,-460.0,0.00018934,2]
[373408892,1752989447274,-405.47,0.00018934,2]
[373408894,1752989447284,-460.0,0.00018934,2]
[373408896,1752989447294,-966.21,0.00018934,2]
[373408898,1752989447303,-460.0,0.00018934,2]
[373408900,1752989447312,-460.0,0.00018934,2]
[373408902,1752989447320,-2187.03,0.00018934,2]
[373408904,1752989447329,-460.0,0.00018935,2]
[373408906,1752989447338,-460.0,0.00018935,2]
[373408908,1752989447347,-252.9,0.00018935,2]
[373408910,1752989447356,-528.5709046,0.00018935,2]
[373408912,1752989447365,-460.0,0.00018935,2]
[373408913,1752989447375,-460.0,0.00018935,2]
[373408915,1752989447384,-460.0,0.00018935,2]
[373408917,1752989447394,-460.0,0.00018935,2]
[373408919,1752989447403,-460.0,0.00018935,2]
[373408921,1752989447412,-460.0,0.00018935,2]
[373408924,1752989447422,-460.0,0.00018935,2]
[373408925,1752989447431,-460.0,0.00018935,2]
[373408927,1752989447440,-460.0,0.00018935,2]
[373408929,1752989447450,-1003.63,0.00018935,2]
[373408931,1752989447459,-460.0,0.00018935,2]
[373408934,1752989447468,-460.0,0.00018935,2]
[373408936,1752989447477,-460.0,0.00018935,2]
[373408937,1752989447487,-460.0,0.00018935,2]
[373408939,1752989447496,-460.0,0.00018936,2]
[373408941,1752989447505,-460.0,0.00018936,2]
[373408943,1752989447514,-460.0,0.00018936,2]
[373408945,1752989447523,-9834.03,0.00018937,2]
[373408947,1752989447532,-460.0,0.00018937,2]
[373408949,1752989447541,-460.0,0.00018937,2]
[373408951,1752989447551,-460.0,0.00018937,2]
[373408953,1752989447560,-460.0,0.00018937,2]
[373408955,1752989447569,-460.0,0.00018937,2]
[373408957,1752989447578,-460.0,0.00018937,2]
[373408959,1752989447587,-460.0,0.00018937,2]
[373408961,1752989447597,-460.0,0.00018937,2]
[373408964,1752989447607,-699.19,0.00018937,2]
[373408965,1752989447616,-460.0,0.00018937,2]
[373408967,1752989447625,-1385.13,0.00018937,2]
[373408969,1752989447634,-332.01201208,0.00019003,2]
[373408971,1752989447643,-617.15,0.00019036,2]
[373408973,1752989447652,-460.0,0.00019036,2]
[373408975,1752989447662,-460.0,0.00019036,2]
[373408977,1752989447671,-460.0,0.00019036,2]
[373408980,1752989447681,-460.0,0.00019036,2]
[373408982,1752989447691,-460.0,0.00019036,2]
[373408984,1752989447699,-460.0,0.00019036,2]
[373408986,1752989447709,-460.0,0.00019036,2]
[373408988,1752989447718,-1853.25,0.00019037,2]
[373408989,1752989447727,-724.52,0.00019037,2]
[373408991,1752989447737,-274.06147548,0.00019054,2]
[373408994,1752989447746,-1047.19,0.00019138,2]
[373408996,1752989447755,-782.02,0.00019139,2]
[373408998,1752989447764,-1239.34,0.00019139,2]
[373409000,1752989447774,-460.0,0.00019139,2]
[373409002,1752989447783,-836.02,0.00019139,2]
[373409003,1752989447792,-420.0,0.00019171,2]
[373409005,1752989447801,-182.509569,0.00019178,2]
[373409008,1752989447810,-632.1316733,0.00019178,2]
[373409010,1752989447819,-666.0,0.00019178,2]
[373409011,1752989447828,-1597.98,0.00019208,2]
[373409014,1752989447838,-531.74,0.00019208,2]
[373409016,1752989447846,-1212.6,0.00019208,2]
[373409018,1752989447855,-460.0,0.00019208,2]
[373409019,1752989447864,-460.0,0.00019208,2]
[373409021,1752989447874,-460.0,0.00019208,2]
[373409024,1752989447884,-460.0,0.00019208,2]
[373409026,1752989447893,-966.21,0.00019208,2]
[373409028,1752989447901,-460.0,0.00019208,2]
[373409030,1752989447911,-460.0,0.00019208,2]
[373409032,1752989447920,-2187.03,0.00019208,2]
[373409034,1752989447930,-460.0,0.00019209,2]
[373409036,1752989447939,-460.0,0.00019209,2]
[373409038,1752989447948,-460.0,0.00019209,2]
[373409040,1752989447958,-600.17323963,0.00019209,2]
[373409042,1752989447969,-460.0,0.00019209,2]
[373409044,1752989447978,-460.0,0.00019209,2]
[373409046,1752989447987,-334.15614441,0.00019209,2]
[373409047,1752989447996,-460.0,0.00019209,2]
[373409050,1752989448006,-460.0,0.00019209,2]
[373409051,1752989448017,-460.0,0.00019209,2]
[373409054,1752989448028,-460.0,0.00019209,2]
[373409055,1752989448037,-1003.63,0.00019209,2]
[373409057,1752989448046,-460.0,0.00019209,2]
[373409059,1752989448055,-460.0,0.00019209,2]
[373409061,1752989448065,-460.0,0.00019209,2]
[373409063,1752989448075,-460.0,0.00019209,2]
[373409065,1752989448084,-437.34,0.0001921,2]
[373409068,1752989448094,-355.73,0.0001921,2]
[373409070,1752989448105,-460.0,0.0001921,2]
[373409071,1752989448115,-9834.03,0.00019211,2]
[373409073,1752989448124,-460.0,0.00019211,2]
[373409075,1752989448135,-460.0,0.00019211,2]
[373409078,1752989448145,-460.0,0.00019211,2]
[373409079,1752989448154,-460.0,0.00019211,2]
[373409081,1752989448164,-460.0,0.00019211,2]
[373409083,1752989448173,-460.0,0.00019211,2]
[373409085,1752989448182,-460.0,0.00019211,2]
[373409088,1752989448191,-460.0,0.00019211,2]
[373409089,1752989448201,-699.19,0.00019211,2]
[373409091,1752989448211,-196.95,0.00019211,2]
[373409094,1752989448220,-1385.13,0.00019211,2]
[373409095,1752989448230,-1680.0,0.00019265,2]
[373409098,1752989448239,-332.01201208,0.00019279,2]
[373409100,1752989448249,-617.15,0.0001931,2]
[373409102,1752989448259,-460.0,0.0001931,2]
[373409104,1752989448268,-460.0,0.0001931,2]
[373409105,1752989448277,-182.72,0.0001931,2]
[373409108,1752989448286,-460.0,0.0001931,2]
[373409110,1752989448295,-208.06,0.0001931,2]
[373409111,1752989448305,-460.0,0.0001931,2]
[373409113,1752989448314,-460.0,0.0001931,2]
[373409115,1752989448323,-1853.25,0.00019311,2]
[373409117,1752989448332,-724.52,0.00019311,2]
[373409119,1752989448341,-100000.0,0.00019329,2]
[373409121,1752989448351,-1047.19,0.00019412,2]
[373409123,1752989448360,-782.02,0.00019413,2]
[373409125,1752989448369,-1239.34,0.00019413,2]
[373409127,1752989448378,-460.0,0.00019413,2]
[373409129,1752989448388,-836.02,0.00019413,2]
[373409131,1752989448397,-500.0,0.0001942,2]
[373409133,1752989448406,-1597.98,0.00019482,2]
[373409136,1752989448415,-531.74,0.00019482,2]
[373409138,1752989448425,-1212.6,0.00019482,2]
[373409140,1752989448435,-460.0,0.00019482,2]
[373409141,1752989448444,-460.0,0.00019482,2]
[373409143,1752989448453,-460.0,0.00019482,2]
[373409145,1752989448462,-460.0,0.00019482,2]
[373409147,1752989448471,-966.21,0.00019482,2]
[373409149,1752989448481,-460.0,0.00019482,2]
[373409151,1752989448491,-460.0,0.00019482,2]
[373409153,1752989448500,-2187.03,0.00019482,2]
[373409155,1752989448509,-447.33,0.00019483,2]
[373409157,1752989448519,-460.0,0.00019483,2]
[373409159,1752989448528,-412.70668576,0.00019483,2]
[373409161,1752989448537,-460.0,0.00019483,2]
[373409163,1752989448546,-460.0,0.00019483,2]
[373409165,1752989448556,-460.0,0.00019483,2]
[373409167,1752989448566,-460.0,0.00019483,2]
[373409169,1752989448575,-460.0,0.00019483,2]
[373409171,1752989448585,-460.0,0.00019483,2]
[373409173,1752989448595,-1003.63,0.00019483,2]
[373409175,1752989448605,-460.0,0.00019483,2]
[373409177,1752989448614,-306.66,0.00019483,2]
[373409179,1752989448623,-460.0,0.00019483,2]
[373409181,1752989448634,-460.0,0.00019483,2]
[373409183,1752989448643,-460.0,0.00019484,2]
[373409185,1752989448653,-9834.03,0.00019485,2]
[373409187,1752989448663,-460.0,0.00019485,2]
[373409189,1752989448676,-460.0,0.00019485,2]
[373409191,1752989448695,-460.0,0.00019485,2]
[373409193,1752989448706,-460.0,0.00019485,2]
[373409195,1752989448719,-264.64023351,0.00019485,2]
[373409196,1752989448728,-460.0,0.00019485,2]
[373409198,1752989448738,-460.0,0.00019485,2]
[373409200,1752989448747,-699.19,0.00019485,2]
[373409202,1752989448756,-1385.13,0.00019485,2]
[373409204,1752989448765,-151.0,0.000195,2]
[373409206,1752989448774,-332.01201208,0.00019555,2]
[373409208,1752989448783,-617.15,0.00019584,2]
[373409210,1752989448792,-460.0,0.00019584,2]
[373409212,1752989448802,-460.0,0.00019584,2]
[373409214,1752989448811,-568.09,0.00019584,2]
[373409216,1752989448820,-460.0,0.00019584,2]
[373409218,1752989448829,-1853.25,0.00019585,2]
[373409220,1752989448838,-724.52,0.00019585,2]
[373409222,1752989448847,-230.98123516,0.00019605,2]
[373409224,1752989448856,-214.5637056,0.00019605,2]
[373409226,1752989448866,-160.0,0.00019605,2]
[373409228,1752989448875,-160.0,0.00019605,2]
[373409230,1752989448885,-215.71456056,0.00019605,2]
[373409242,1752989448987,-525.91036056,0.00019605,2]
[373409244,1752989448998,-160.0,0.00019605,2]
[373409246,1752989449008,-839.59621281,0.00019605,2]
[373409248,1752989449017,-12615.16111038,0.00019606,2]
[373409250,1752989449029,-160.0,0.00019606,2]
[373409251,1752989449038,-160.0,0.00019606,2]
[373409254,1752989449047,-160.0,0.00019606,2]
[373409255,1752989449057,-160.0,0.00019606,2]
[373409257,1752989449068,-1047.19,0.00019686,2]
[373409259,1752989449077,-782.02,0.00019687,2]
[373409261,1752989449087,-1239.34,0.00019687,2]
[373409263,1752989449097,-460.0,0.00019687,2]
[373409265,1752989449106,-836.02,0.00019687,2]
[373409267,1752989449115,-1597.98,0.00019756,2]
[373409269,1752989449125,-531.74,0.00019756,2]
[373409271,1752989449136,-1212.6,0.00019756,2]
[373409273,1752989449145,-460.0,0.00019756,2]
[373409275,1752989449154,-460.0,0.00019756,2]
[373409277,1752989449163,-460.0,0.00019756,2]
[373409279,1752989449172,-460.0,0.00019756,2]
[373409281,1752989449181,-966.21,0.00019756,2]
[373409283,1752989449190,-460.0,0.00019756,2]
[373409285,1752989449199,-460.0,0.00019756,2]
[373409287,1752989449208,-2187.03,0.00019756,2]
[373409289,1752989449218,-176.61,0.00019757,2]
[373409291,1752989449227,-460.0,0.00019757,2]
[373409293,1752989449236,-460.0,0.00019757,2]
[373409295,1752989449248,-460.0,0.00019757,2]
[373409297,1752989449257,-460.0,0.00019757,2]
[373409299,1752989449266,-460.0,0.00019757,2]
[373409301,1752989449275,-460.0,0.00019757,2]
[373409303,1752989449284,-1003.63,0.00019757,2]
[373409305,1752989449293,-460.0,0.00019757,2]
[373409307,1752989449302,-460.0,0.00019757,2]
[373409309,1752989449311,-180.38,0.00019757,2]
[373409311,1752989449319,-460.0,0.00019758,2]
[373409313,1752989449328,-9834.03,0.00019759,2]
[373409315,1752989449338,-460.0,0.00019759,2]
[373409317,1752989449347,-460.0,0.00019759,2]
[373409319,1752989449356,-377.28817053,0.00019759,2]
[373409321,1752989449365,-460.0,0.00019759,2]
[373409323,1752989449374,-460.0,0.00019759,2]
[373409325,1752989449384,-460.0,0.00019759,2]
[373409327,1752989449393,-699.19,0.00019759,2]
[373409329,1752989449402,-1385.13,0.00019759,2]
[373409331,1752989449411,-332.01201208,0.00019831,2]
[373409333,1752989449420,-617.15,0.00019858,2]
[373409335,1752989449429,-460.0,0.00019858,2]
[373409337,1752989449438,-460.0,0.00019858,2]
[373409339,1752989449448,-460.0,0.00019858,2]
[373409340,1752989449457,-1853.25,0.00019859,2]
[373409343,1752989449467,-724.52,0.00019859,2]
[373409344,1752989449476,-5204.00726309,0.000199,2]
[373409346,1752989449485,-12599.57303136,0.0001993,2]
[373409348,1752989449494,-1047.19,0.0001996,2]
[373409350,1752989449504,-782.02,0.00019961,2]
[373409353,1752989449513,-1239.34,0.00019961,2]
[373409354,1752989449522,-460.0,0.00019961,2]
[373409357,1752989449532,-836.02,0.00019961,2]
[373409358,1752989449541,-500.0,0.00019973,2]
[373409361,1752989449551,-363969.24589371,0.0001998,2]
[373409363,1752989449560,-151.558243,0.0001998,2]
[373409364,1752989449569,-5930.36489455,0.0002,2]
[373409367,1752989449579,-14346.20478963,0.0002,2]
[373409368,1752989449588,-3194.4852885,0.0002,2]
[373409371,1752989449597,-362.71658097,0.0002,2]
[373409372,1752989449607,-35692.89985663,0.0002,2]
[373409376,1752989449736,-460.0,0.00017567,2]
[373409377,1752989449746,-35824.85588832,0.0002,2]
[373409378,1752989449755,-71991.9922906,0.0002,2]
[373409379,1752989449764,-1597.98,0.0002003,2]
[373409380,1752989449773,-531.74,0.0002003,2]
[373409381,1752989449781,-1212.6,0.0002003,2]
[373409382,1752989449790,-460.0,0.0002003,2]
[373409383,1752989449799,-460.0,0.0002003,2]
[373409385,1752989449808,-460.0,0.0002003,2]
[373409386,1752989449816,-460.0,0.0002003,2]
[373409387,1752989449825,-966.21,0.0002003,2]
[373409389,1752989449834,-191.93,0.0002003,2]
[373409391,1752989449843,-482.93,0.0002003,2]
[373409393,1752989449853,-2187.03,0.0002003,2]
[373409395,1752989449862,-460.0,0.00020031,2]
[373409397,1752989449871,-460.0,0.00020031,2]
[373409399,1752989449881,-391.20589713,0.00020031,2]
[373409401,1752989449891,-460.0,0.00020031,2]
[373409403,1752989449900,-460.0,0.00020031,2]
[373409405,1752989449911,-460.0,0.00020031,2]
[373409407,1752989449919,-1003.63,0.00020031,2]
[373409409,1752989449929,-460.0,0.00020031,2]
[373409411,1752989449937,-460.0,0.00020031,2]
[373409413,1752989449947,-460.0,0.00020032,2]
[373409415,1752989449956,-9834.03,0.00020033,2]
[373409417,1752989449966,-460.0,0.00020033,2]
[373409419,1752989449974,-474.0,0.00020033,2]
[373409421,1752989449984,-460.0,0.00020033,2]
[373409423,1752989449993,-465.47,0.00020033,2]
[373409425,1752989450003,-460.0,0.00020033,2]
[373409427,1752989450012,-699.19,0.00020033,2]
[373409429,1752989450025,-1385.13,0.00020033,2]
[373409431,1752989450034,-332.01201208,0.00020107,2]
[373409433,1752989450043,-617.15,0.00020132,2]
[373409435,1752989450052,-460.0,0.00020132,2]
[373409437,1752989450061,-460.0,0.00020132,2]
[373409439,1752989450070,-460.0,0.00020132,2]
[373409441,1752989450078,-1853.25,0.00020133,2]
[373409443,1752989450087,-724.52,0.00020133,2]
[373409445,1752989450097,-1047.19,0.00020234,2]
[373409447,1752989450106,-782.02,0.00020235,2]
[373409449,1752989450115,-1239.34,0.00020235,2]
[373409451,1752989450126,-460.0,0.00020235,2]
[373409453,1752989450137,-836.02,0.00020235,2]
[373409455,1752989450146,-1597.98,0.00020304,2]
[373409457,1752989450155,-531.74,0.00020304,2]
[373409459,1752989450164,-1212.6,0.00020304,2]
[373409461,1752989450173,-460.0,0.00020304,2]
[373409463,1752989450182,-460.0,0.00020304,2]
[373409465,1752989450191,-332.79830233,0.00020304,2]
[373409467,1752989450200,-460.0,0.00020304,2]
[373409468,1752989450209,-966.21,0.00020304,2]
[373409470,1752989450219,-92.11827271,0.00020304,2]
[373409473,1752989450230,-2069.567383,0.00020304,2]
[373409475,1752989450241,-25.34434429,0.00020304,2]
[373409477,1752989450250,-460.0,0.00020305,2]
[373409479,1752989450260,-460.0,0.00020305,2]
[373409481,1752989450269,-460.0,0.00020305,2]
[373409483,1752989450278,-460.0,0.00020305,2]
[373409485,1752989450287,-1003.63,0.00020305,2]
[373409487,1752989450297,-460.0,0.00020305,2]
[373409489,1752989450306,-460.0,0.00020305,2]
[373409491,1752989450315,-460.0,0.00020306,2]
[373409493,1752989450324,-9834.03,0.00020307,2]
[373409495,1752989450333,-460.0,0.00020307,2]
[373409497,1752989450343,-194.1,0.00020307,2]
[373409499,1752989450352,-460.0,0.00020307,2]
[373409501,1752989450360,-699.19,0.00020307,2]
[373409503,1752989450369,-1385.13,0.00020307,2]
[373409505,1752989450379,-332.01201208,0.00020383,3]
[373409507,1752989450389,-617.15,0.00020406,2]
[373409509,1752989450398,-460.0,0.00020406,2]
[373409511,1752989450407,-460.0,0.00020406,2]
[373409513,1752989450416,-460.0,0.00020406,2]
[373409515,1752989450426,-1853.25,0.00020407,2]
[373409517,1752989450435,-724.52,0.00020407,2]
[373409519,1752989450445,-5204.00726302,0.00020504,2]
[373409521,1752989450454,-1047.19,0.00020508,2]
[373409523,1752989450463,-782.02,0.00020509,2]
[373409525,1752989450473,-1239.34,0.00020509,2]
[373409527,1752989450482,-460.0,0.00020509,2]
[373409529,1752989450491,-836.02,0.00020509,2]
[373409531,1752989450500,-500.0,0.00020516,2]
[373409533,1752989450509,-512.46627473,0.00020521,2]
[373409535,1752989450519,-159.852039,0.00020548,2]
[373409536,1752989450528,-1597.98,0.00020578,2]
[373409539,1752989450537,-531.74,0.00020578,2]
[373409540,1752989450547,-1212.6,0.00020578,2]
[373409542,1752989450557,-460.0,0.00020578,2]
[373409544,1752989450566,-460.0,0.00020578,2]
[373409546,1752989450575,-460.0,0.00020578,2]
[373409548,1752989450584,-966.21,0.00020578,2]
[373409550,1752989450594,-2187.03,0.00020578,2]
[373409552,1752989450603,-387.42661612,0.00020579,2]
[373409554,1752989450613,-404.82698452,0.00020579,2]
[373409556,1752989450622,-460.0,0.00020579,2]
[373409558,1752989450632,-460.0,0.00020579,2]
[373409560,1752989450641,-1003.63,0.00020579,2]
[373409562,1752989450651,-460.0,0.00020579,2]
[373409564,1752989450660,-460.0,0.00020579,2]
[373409566,1752989450669,-460.0,0.0002058,2]
[373409569,1752989450679,-9834.03,0.00020581,2]
[373409571,1752989450688,-460.0,0.00020581,2]
[373409572,1752989450698,-460.0,0.00020581,2]
[373409574,1752989450707,-699.19,0.00020581,2]
[373409576,1752989450716,-1385.13,0.00020581,2]
[373409578,1752989450725,-332.01201208,0.00020659,3]
[373409580,1752989450734,-617.15,0.0002068,2]
[373409582,1752989450744,-335.65349605,0.0002068,2]
[373409584,1752989450753,-460.0,0.0002068,2]
[373409586,1752989450762,-460.0,0.0002068,2]
[373409588,1752989450771,-1853.25,0.00020681,2]
[373409590,1752989450780,-724.52,0.00020681,2]
[373409592,1752989450789,-859.49223961,0.00020739,2]
[373409594,1752989450799,-1047.19,0.00020782,2]
[373409596,1752989450808,-782.02,0.00020783,2]
[373409598,1752989450817,-1239.34,0.00020783,2]
[373409600,1752989450826,-332.48920905,0.00020783,2]
[373409602,1752989450835,-836.02,0.00020783,2]
[373409604,1752989450844,-1049.72,0.00020814,2]
[373409606,1752989450853,-1597.98,0.00020852,2]
[373409608,1752989450863,-531.74,0.00020852,2]
[373409610,1752989450872,-1212.6,0.00020852,2]
[373409612,1752989450882,-460.0,0.00020852,2]
[373409614,1752989450891,-460.0,0.00020852,2]
[373409616,1752989450900,-460.0,0.00020852,2]
[373409618,1752989450909,-966.21,0.00020852,2]
[373409620,1752989450919,-460.0,0.00020853,2]
[373409622,1752989450928,-460.0,0.00020853,2]
[373409624,1752989450937,-1003.63,0.00020853,2]
[373409626,1752989450947,-214.9698298,0.00020853,2]
[373409628,1752989450955,-460.0,0.00020853,2]
[373409630,1752989450964,-460.0,0.00020854,2]
[373409632,1752989450973,-9834.03,0.00020855,2]
[373409634,1752989450984,-460.0,0.00020855,2]
[373409636,1752989450993,-460.0,0.00020855,2]
[373409638,1752989451002,-699.19,0.00020855,2]
[373409640,1752989451012,-1385.13,0.00020855,2]
[373409642,1752989451026,-587.0,0.00020927,2]
[373409653,1752989451117,-332.01201208,0.00020934,4]
[373409656,1752989451140,-617.15,0.00020954,2]
[373409658,1752989451149,-460.0,0.00020954,2]
[373409660,1752989451158,-460.0,0.00020954,2]
[373409662,1752989451167,-1853.25,0.00020955,2]
[373409664,1752989451175,-724.52,0.00020955,2]
[373409666,1752989451184,-43045.50205228,0.00021,4]
[373409668,1752989451193,-1047.19,0.00021056,2]
[373409670,1752989451203,-782.02,0.00021057,2]